bitfinex/quotes_BTCUSD_20240818
["timestamp","ask_amount","ask_price","bid_price","bid_amount"]
[1723982587091,0.000825,60185.0,60184.0,0.85843957]
[1723982589347,0.000825,60185.0,60184.0,1.09105857]
[1723982589562,0.00078332,60185.0,60184.0,1.09105982]
[1723982590187,0.00074179,60185.0,60184.0,1.09105982]
[1723982590391,0.00074179,60185.0,60184.0,1.09107327]
[1723982592895,0.00074179,60185.0,60184.0,0.62583527]
[1723982593070,0.07634179,60185.0,60184.0,0.50952627]
[1723982593274,0.07634179,60185.0,60184.0,0.85845427]
[1723982593481,0.07634179,60185.0,60184.0,0.52651837]
[1723982593680,0.07634179,60185.0,60184.0,0.52651894]
[1723982594185,0.25564979,60185.0,60184.0,0.021]
[1723982594821,0.48826579,60185.0,60184.0,0.021]
[1723982595134,0.48826579,60185.0,60184.0,0.01]
[1723982595710,0.48826579,60185.0,60176.0,0.232649]
[1723982595711,0.232624,60183.0,60176.0,0.232649]
[1723982596010,0.0756,60181.0,60178.0,0.116321]
[1723982596250,0.254916,60181.0,60176.0,0.04967009]
[1723982596431,0.1386,60181.0,60177.0,0.116322]
[1723982596797,0.254916,60181.0,60177.0,0.116322]
[1723982597018,0.1386,60181.0,60178.0,0.11632]
[1723982598021,0.116318,60180.0,60176.0,0.16599409]
[1723982598229,0.1386,60181.0,60177.0,0.116322]
[1723982598388,0.191916,60181.0,60177.0,0.116322]
[1723982598764,0.063,60180.0,60177.0,0.119322]
[1723982598876,0.063,60180.0,60177.0,0.121322]
[1723982599092,0.348964,60178.0,60177.0,0.005]
[1723982599601,0.411964,60178.0,60177.0,0.003]
[1723982599802,0.179321,60178.0,60177.0,0.003]
[1723982600010,0.411964,60178.0,60177.0,0.003]
[1723982600212,0.411964,60178.0,60177.0,0.009]
[1723982600417,0.411964,60178.0,60177.0,0.006]
[1723982600418,0.644607,60178.0,60177.0,0.006]
[1723982600648,0.73587488,60178.0,60177.0,0.006]
[1723982600856,0.644607,60178.0,60177.0,0.006]
[1723982601057,0.411964,60178.0,60177.0,0.006]
[1723982601301,0.254921,60178.0,60177.0,0.006]
[1723982601574,0.254921,60178.0,60173.0,0.04967009]
[1723982601773,0.254921,60178.0,60173.0,0.16599909]
[1723982601980,0.254921,60178.0,60177.0,0.002]
[1723982602178,0.254921,60178.0,60173.0,0.04967009]
[1723982602179,0.1386,60178.0,60173.0,0.04967009]
[1723982602356,0.116329,60174.0,60173.0,0.04967009]
[1723982602494,0.116329,60174.0,60171.0,0.04967009]
[1723982602495,0.1386,60174.0,60171.0,0.04967009]
[1723982602690,0.116332,60173.0,60169.0,0.16600709]
[1723982603103,0.116334,60172.0,60169.0,0.04967009]
[1723982603294,0.1386,60174.0,60168.0,0.04967009]
[1723982603496,0.1386,60174.0,60167.0,0.232684]
[1723982603696,0.116331,60173.0,60169.0,0.116338]
[1723982603901,0.116331,60173.0,60171.0,0.005]
[1723982604124,0.116333,60172.0,60171.0,0.005]
[1723982604486,0.116331,60173.0,60171.0,0.005]
[1723982604718,0.348999,60172.0,60171.0,0.005]
[1723982604918,0.411999,60172.0,60171.0,0.005]
[1723982605115,0.179333,60172.0,60171.0,0.005]
[1723982605326,0.116335,60171.0,60169.0,0.005]
[1723982605473,0.063,60172.0,60169.0,0.005]
[1723982605474,0.116337,60170.0,60169.0,0.005]
[1723982605819,0.116337,60170.0,60164.0,0.04967009]
[1723982605820,0.116337,60170.0,60166.0,0.116343]
[1723982606228,0.063,60172.0,60166.0,0.116343]
[1723982606439,0.116335,60171.0,60167.0,0.116342]
[1723982606629,0.116337,60170.0,60165.0,0.232692]
[1723982606845,0.116337,60170.0,60166.0,0.116343]
[1723982607544,0.116337,60170.0,60169.0,0.01]
[1723982607922,0.179333,60172.0,60169.0,0.01]
[1723982608123,0.063,60172.0,60169.0,0.01]
[1723982608303,0.116336,60171.0,60169.0,0.01]
[1723982608706,0.116337,60170.0,60166.0,0.006]
[1723982608908,0.116337,60170.0,60166.0,0.122343]
[1723982609139,0.116337,60170.0,60166.0,0.126343]
[1723982609337,0.180334,60172.0,60169.0,0.006]
[1723982609540,0.116335,60171.0,60169.0,0.006]
[1723982609741,0.116337,60170.0,60163.0,0.232699]
[1723982609944,0.116337,60170.0,60166.0,0.116343]
[1723982610143,0.001,60170.0,60167.0,0.116342]
[1723982610764,0.001,60170.0,60169.0,0.008]
[1723982610968,0.117337,60170.0,60169.0,0.008]
[1723982611170,0.488611,60170.0,60169.0,0.008]
[1723982611801,0.255937,60170.0,60169.0,0.008]
[1723982612023,0.1396,60170.0,60169.0,0.008]
[1723982612346,0.1386,60170.0,60167.0,0.126341]
[1723982612621,0.1396,60170.0,60167.0,0.116341]
[1723982613039,0.1386,60170.0,60167.0,0.116341]
[1723982613404,0.1416,60170.0,60167.0,0.116341]
[1723982613769,0.1386,60170.0,60167.0,0.116341]
[1723982613977,0.1416,60170.0,60167.0,0.116341]
[1723982615216,0.257937,60170.0,60166.0,0.1172515]
[1723982616016,0.254937,60170.0,60166.0,0.1172515]
[1723982616575,0.1406,60170.0,60167.0,0.116342]
[1723982616805,0.1416,60170.0,60167.0,0.116342]
[1723982618538,0.257937,60170.0,60166.0,0.1172515]
[1723982618899,0.257937,60170.0,60166.0,0.0009075]
[1723982618900,0.1416,60170.0,60166.0,0.0009075]
[1723982619076,0.116339,60169.0,60166.0,0.0009075]
[1723982619625,0.1406,60170.0,60166.0,0.1172515]
[1723982619828,0.254937,60170.0,60166.0,0.1172515]
[1723982620071,0.293378,60169.0,60166.0,0.0009075]
[1723982620245,0.232682,60168.0,60166.0,0.0009075]
[1723982620419,0.116342,60167.0,60166.0,0.0009075]
[1723982620620,0.177042,60167.0,60166.0,0.0009075]
[1723982620971,0.409727,60167.0,60166.0,0.0009075]
[1723982621125,0.718212,60167.0,60166.0,0.0009075]
[1723982621709,0.718212,60167.0,60166.0,0.0029075]
[1723982622408,0.950897,60167.0,60166.0,0.0029075]
[1723982622815,0.718212,60167.0,60166.0,0.0029075]
[1723982623233,0.718212,60167.0,60166.0,0.0039075]
[1723982623933,0.718212,60167.0,60166.0,0.0029075]
[1723982624137,0.8213004,60167.0,60166.0,0.0009075]
[1723982624394,1.0539854,60167.0,60166.0,0.0009075]
[1723982624569,1.06379304,60167.0,60166.0,0.0009075]
[1723982625552,0.955897,60167.0,60166.0,0.0009075]
[1723982626457,0.723212,60167.0,60166.0,0.0009075]
[1723982629762,0.414727,60167.0,60166.0,0.0009075]
[1723982631733,0.414727,60167.0,60166.0,0.01182677]
[1723982631969,0.414727,60167.0,60166.0,0.0009075]
[1723982635994,0.647412,60167.0,60166.0,0.0009075]
[1723982637163,0.72423658,60167.0,60166.0,0.0009075]
[1723982638065,0.647412,60167.0,60166.0,0.0009075]
[1723982638938,0.53107,60167.0,60166.0,0.0009075]
[1723982639342,0.647412,60167.0,60166.0,0.0009075]
[1723982645376,0.730312,60167.0,60166.0,0.0009075]
[1723982648280,0.962997,60167.0,60166.0,0.0009075]
[1723982649685,1.06331409,60167.0,60166.0,0.0009075]
[1723982650304,0.962997,60167.0,60166.0,0.0009075]
[1723982650507,0.963823,60167.0,60166.0,0.0009075]
[1723982658408,0.005826,60167.0,60166.0,0.2621515]
[1723982658612,0.005826,60167.0,60166.0,0.4948405]
[1723982658840,0.005826,60167.0,60166.0,0.52624333]
[1723982659247,0.000826,60167.0,60166.0,0.55543126]
[1723982659452,0.000826,60167.0,60166.0,0.8086258]
[1723982659743,0.005826,60167.0,60166.0,0.8086258]
[1723982660745,0.005826,60167.0,60166.0,0.8146258]
[1723982660922,0.000826,60167.0,60166.0,0.8146258]
[1723982661152,0.000826,60167.0,60166.0,0.8196258]
[1723982661310,0.000826,60167.0,60166.0,1.0523148]
[1723982661671,0.000826,60167.0,60166.0,1.13875955]
[1723982661884,0.000826,60167.0,60166.0,1.49568596]
[1723982662220,0.000826,60167.0,60166.0,1.37144855]
[1723982662414,0.000826,60167.0,60166.0,1.13875955]
[1723982662642,0.000826,60167.0,60166.0,1.23807306]
[1723982662861,0.000826,60167.0,60166.0,1.47076351]
[1723982663063,0.000826,60167.0,60166.0,1.37143094]
[1723982663264,0.000826,60167.0,60166.0,1.37142853]
[1723982663501,0.000826,60167.0,60166.0,1.56598307]
[1723982664059,0.000826,60167.0,60166.0,1.65438401]
[1723982665076,0.000826,60167.0,60166.0,1.22714047]
[1723982665298,0.000826,60167.0,60166.0,1.12784373]
[1723982666148,0.000826,60167.0,60166.0,1.20230047]
[1723982666354,0.000826,60167.0,60166.0,1.20230054]
[1723982666553,0.000826,60167.0,60166.0,1.12784151]
[1723982667199,0.000826,60167.0,60166.0,1.20229056]
[1723982667712,0.000826,60167.0,60166.0,1.20228667]
[1723982669210,0.000826,60167.0,60166.0,0.80866186]
[1723982669550,0.000826,60167.0,60166.0,0.80865622]
[1723982670192,0.000826,60167.0,60166.0,1.04234522]
[1723982670414,0.000826,60167.0,60166.0,1.06534522]
[1723982670842,0.000826,60167.0,60166.0,1.06434522]
[1723982671582,0.000826,60167.0,60166.0,1.06435064]
[1723982672084,0.000826,60167.0,60166.0,0.52634905]
[1723982672285,0.000826,60167.0,60166.0,0.46294895]
[1723982672494,0.000826,60167.0,60166.0,0.4424405]
[1723982673855,0.000826,60167.0,60166.0,0.0119075]
[1723982674054,0.000826,60167.0,60166.0,0.1282515]
[1723982674550,0.000826,60167.0,60166.0,0.1232515]
[1723982674957,0.000826,60167.0,60166.0,0.1192515]
[1723982675160,0.430353,60167.0,60166.0,0.0059075]
[1723982675510,0.430353,60167.0,60166.0,0.0009075]
[1723982675511,0.726038,60167.0,60166.0,0.0009075]
[1723982675687,0.726038,60167.0,60166.0,0.0029075]
[1723982676996,0.726038,60167.0,60166.0,0.0059075]
[1723982677376,0.726038,60167.0,60166.0,0.0029075]
[1723982677604,0.726038,60167.0,60166.0,0.0009075]
[1723982677986,0.732038,60167.0,60166.0,0.0019075]
[1723982678404,0.726038,60167.0,60166.0,0.0009075]
[1723982678814,0.732038,60167.0,60166.0,0.0019075]
[1723982680038,0.964723,60167.0,60166.0,0.0019075]
[1723982685281,1.06530955,60167.0,60166.0,0.0019075]
[1723982685508,1.16530955,60167.0,60166.0,0.0019075]
[1723982688079,1.39899455,60167.0,60166.0,0.0019075]
[1723982688296,1.40299455,60167.0,60166.0,0.0019075]
[1723982688696,1.73528917,60167.0,60166.0,0.0019075]
[1723982689064,1.63567955,60167.0,60166.0,0.0019075]
[1723982689247,1.96791534,60167.0,60166.0,5e-07]
[1723982689393,1.89136455,60167.0,60166.0,5e-07]
[1723982689810,2.01580588,60167.0,60166.0,5e-07]
[1723982690009,1.89636455,60167.0,60166.0,5e-07]
[1723982690226,1.98888295,60167.0,60166.0,5e-07]
[1723982690425,1.98888295,60167.0,60159.0,0.0009075]
[1723982690426,1.424704,60160.0,60159.0,0.0009075]
[1723982690634,1.524704,60160.0,60159.0,0.0009075]
[1723982691016,1.757416,60160.0,60159.0,0.0009075]
[1723982691454,1.758416,60160.0,60159.0,0.0009075]
[1723982692032,1.758416,60160.0,60159.0,0.0019075]
[1723982692236,1.94397054,60160.0,60159.0,0.0019075]
[1723982692670,1.95408764,60160.0,60159.0,0.0019075]
[1723982693329,1.95408764,60160.0,60159.0,0.0009075]
[1723982693501,1.94008764,60160.0,60159.0,0.0009075]
[1723982693700,1.96808764,60160.0,60159.0,0.0009075]
[1723982693905,1.95408764,60160.0,60159.0,0.0009075]
[1723982694248,1.96808764,60160.0,60159.0,0.0009075]
[1723982703289,0.844681,60146.0,60145.0,0.00020427]
[1723982704069,1.313647,60146.0,60145.0,0.00020427]
[1723982704395,1.314647,60146.0,60145.0,0.00020427]
[1723982704546,1.559413,60146.0,60145.0,0.00020427]
[1723982704747,1.565413,60146.0,60145.0,0.00020427]
[1723982704970,1.73696754,60146.0,60145.0,0.00020427]
[1723982705804,1.74717155,60146.0,60145.0,0.00020427]
[1723982706182,1.73917155,60146.0,60145.0,0.00020427]
[1723982706382,1.76217155,60146.0,60145.0,0.00020427]
[1723982706586,1.77017155,60146.0,60145.0,0.00020427]
[1723982706808,1.78417155,60146.0,60145.0,0.00020427]
[1723982707488,1.77017155,60146.0,60145.0,0.00020427]
[1723982707937,1.78417155,60146.0,60145.0,0.00020427]
[1723982709161,1.78417155,60146.0,60145.0,2.7e-07]
[1723982709761,1.77017155,60146.0,60145.0,2.7e-07]
[1723982710621,1.75617155,60146.0,60145.0,2.7e-07]
[1723982710824,1.95893755,60146.0,60145.0,2.7e-07]
[1723982711053,1.98693755,60146.0,60145.0,2.7e-07]
[1723982711321,1.97293755,60146.0,60145.0,2.7e-07]
[1723982711750,1.98693755,60146.0,60145.0,2.7e-07]
[1723982712117,2.01693755,60146.0,60145.0,2.7e-07]
[1723982712318,2.00293755,60146.0,60145.0,2.7e-07]
[1723982712521,2.01693755,60146.0,60145.0,2.7e-07]
[1723982717156,1.84538301,60146.0,60145.0,2.7e-07]
[1723982717363,1.84538301,60146.0,60128.0,0.0815064]
[1723982717566,0.844912,60129.0,60128.0,0.0815064]
[1723982717903,1.1687552,60129.0,60128.0,0.0815064]
[1723982718078,1.2687552,60129.0,60128.0,0.0815064]
[1723982718418,1.4737552,60129.0,60128.0,0.0009064]
[1723982718621,1.4697552,60129.0,60128.0,0.0009064]
[1723982718882,1.4717552,60129.0,60128.0,0.0009064]
[1723982719325,1.4707552,60129.0,60128.0,0.0009064]
[1723982719819,1.4807552,60129.0,60128.0,0.0009064]
[1723982720025,1.4787552,60129.0,60128.0,0.0009064]
[1723982720403,1.387744,60129.0,60128.0,0.0009064]
[1723982720791,1.397744,60129.0,60128.0,0.0009064]
[1723982721548,1.399744,60129.0,60128.0,0.0009064]
[1723982721954,1.401744,60129.0,60128.0,0.0009064]
[1723982722164,0.019,60129.0,60128.0,0.4917604]
[1723982722364,0.019,60129.0,60128.0,0.7245964]
[1723982722569,0.019,60129.0,60128.0,0.15345858]
[1723982722570,0.009,60129.0,60128.0,0.15345858]
[1723982722788,0.02,60129.0,60128.0,0.15345858]
[1723982722996,0.011,60129.0,60128.0,0.15345858]
[1723982723379,0.232808,60136.0,60128.0,0.15345858]
[1723982723380,0.116403,60136.0,60132.0,0.061]
[1723982723549,0.232796,60139.0,60134.0,0.061]
[1723982723756,0.232802,60137.0,60135.0,0.0806]
[1723982723905,0.116402,60136.0,60135.0,0.09155958]
[1723982724873,0.232798,60138.0,60135.0,0.09155958]
[1723982725209,0.116402,60136.0,60135.0,0.09155958]
[1723982725429,0.116402,60136.0,60135.0,0.15255958]
[1723982726301,0.124402,60136.0,60135.0,0.15255958]
[1723982726457,0.120402,60136.0,60135.0,0.15255958]
[1723982726846,0.123402,60136.0,60135.0,0.15255958]
[1723982728359,0.007,60136.0,60135.0,0.15255958]
[1723982728559,0.007,60136.0,60135.0,0.26896358]
[1723982731383,0.007,60136.0,60135.0,0.50177258]
[1723982731751,0.007,60136.0,60135.0,0.49652769]
[1723982731957,0.007,60136.0,60135.0,0.72933669]
[1723982734073,0.007,60136.0,60135.0,0.49652769]
[1723982736172,0.007,60136.0,60135.0,0.49743629]
[1723982737667,0.007,60136.0,60135.0,0.26462729]
[1723982738020,0.007,60136.0,60135.0,0.49743629]
[1723982738248,0.007,60136.0,60135.0,0.26462729]
[1723982739124,0.007,60136.0,60135.0,0.49743629]
[1723982740934,0.007,60136.0,60135.0,0.26462729]
[1723982742621,0.007,60136.0,60135.0,0.49743629]
[1723982745737,0.007,60136.0,60135.0,0.73024529]
[1723982750491,0.007,60136.0,60135.0,0.96305429]
[1723982750681,0.007,60136.0,60135.0,1.00660793]
[1723982751112,0.007,60136.0,60135.0,1.18116247]
[1723982751310,0.000826,60145.0,60144.0,0.581935]
[1723982751503,0.000826,60145.0,60144.0,0.73938864]
[1723982751662,0.000826,60145.0,60144.0,0.74505435]
[1723982752479,0.007826,60145.0,60144.0,0.74505435]
[1723982752634,0.008826,60145.0,60144.0,0.74505435]
[1723982753683,0.001826,60145.0,60144.0,0.72450071]
[1723982753892,0.001826,60145.0,60144.0,0.74504903]
[1723982754092,0.002826,60145.0,60144.0,0.74504903]
[1723982754358,0.002826,60145.0,60144.0,0.72450071]
[1723982763822,0.002826,60145.0,60144.0,0.95727471]
[1723982768824,0.002826,60145.0,60144.0,0.72450071]
[1723982774512,0.002826,60145.0,60144.0,0.74504064]
[1723982774668,0.002826,60145.0,60144.0,0.74594924]
[1723982776164,0.002826,60145.0,60144.0,0.00657431]
[1723982776872,0.002826,60145.0,60144.0,0.12296131]
[1723982777430,0.002826,60145.0,60144.0,0.00657431]
[1723982778147,0.119211,60145.0,60144.0,0.00657431]
[1723982778967,0.002826,60145.0,60144.0,0.00657431]
[1723982780352,0.002826,60145.0,60144.0,0.02711612]
[1723982781571,0.002826,60145.0,60144.0,0.02711597]
[1723982782179,0.002826,60145.0,60144.0,0.02711632]
[1723982784323,0.002826,60145.0,60144.0,0.14350332]
[1723982784525,0.002826,60145.0,60144.0,0.37627732]
[1723982784726,0.002826,60145.0,60144.0,0.51907732]
[1723982785709,0.002826,60145.0,60144.0,0.75185035]
[1723982789529,0.002826,60145.0,60144.0,1.69505944]
[1723982789713,0.002826,60145.0,60144.0,1.57097983]
[1723982789916,0.002826,60145.0,60144.0,1.58011348]
[1723982790116,1e-08,60145.0,60144.0,1.58011348]
[1723982792366,1e-08,60145.0,60144.0,1.57097983]
[1723982792907,1e-08,60145.0,60144.0,1.5709308]
[1723982793099,1e-08,60145.0,60144.0,1.57092719]
[1723982794163,1e-08,60145.0,60144.0,1.57091263]
[1723982794789,1e-08,60145.0,60144.0,1.52755521]
[1723982794947,1e-08,60145.0,60144.0,1.57091263]
[1723982795156,1e-08,60145.0,60144.0,1.54808157]
[1723982795396,1e-08,60145.0,60144.0,1.57091263]
[1723982795799,1e-08,60145.0,60144.0,1.54808157]
[1723982796007,1e-08,60145.0,60144.0,1.57091263]
[1723982796239,1e-08,60145.0,60144.0,1.54808157]
[1723982796425,1e-08,60145.0,60144.0,1.80368663]
[1723982797009,1e-08,60145.0,60144.0,1.57091263]
[1723982797822,1e-08,60145.0,60144.0,1.54808157]
[1723982797823,0.00082601,60145.0,60144.0,1.54808157]
[1723982801934,0.00082601,60145.0,60144.0,1.54808082]
[1723982802289,0.00082601,60145.0,60144.0,1.52755446]
[1723982802503,0.00082601,60145.0,60144.0,1.54808022]
[1723982806453,1e-08,60146.0,60145.0,0.117385]
[1723982806599,1e-08,60146.0,60145.0,1.50199291]
[1723982806803,1e-08,60146.0,60145.0,2.0623313]
[1723982806999,1e-08,60146.0,60145.0,2.0633313]
[1723982808426,0.00100001,60146.0,60145.0,2.0633313]
[1723982810059,0.00100001,60146.0,60145.0,2.0673313]
[1723982810455,0.00100001,60146.0,60145.0,3.51486697]
[1723982810659,0.00100001,60146.0,60145.0,3.56734452]
[1723982811037,0.00100001,60146.0,60145.0,3.56729774]
[1723982811827,0.00200001,60146.0,60145.0,3.56729774]
[1723982812470,0.00200001,60146.0,60145.0,2.5797478]
[1723982812804,0.00200001,60146.0,60145.0,2.06329774]
[1723982813000,0.00200001,60146.0,60145.0,3.41429818]
[1723982813208,0.00200001,60146.0,60145.0,3.41429803]
[1723982813413,0.00200001,60146.0,60145.0,3.41429754]
[1723982814895,0.00200001,60146.0,60145.0,3.39377682]
[1723982815023,0.00200001,60146.0,60145.0,3.41429793]
[1723982815808,0.00200001,60146.0,60145.0,3.41629793]
[1723982816018,0.00200001,60146.0,60145.0,3.41429793]
[1723982816222,0.00200001,60146.0,60145.0,3.41629893]
[1723982817050,0.00200001,60146.0,60145.0,3.41429893]
[1723982817254,0.00200001,60146.0,60145.0,3.41629893]
[1723982818457,0.00200001,60146.0,60145.0,1.67720453]
[1723982818657,0.00200001,60146.0,60145.0,1.61620453]
[1723982819101,0.00200001,60146.0,60145.0,1.71074185]
[1723982819303,0.00200001,60146.0,60145.0,1.73126927]
[1723982819512,0.00200001,60146.0,60145.0,1.58655179]
[1723982819719,0.00200001,60146.0,60145.0,1.61622536]
[1723982820215,0.00200001,60146.0,60145.0,1.61625385]
[1723982820636,0.14790001,60146.0,60145.0,0.90126509]
[1723982820859,0.14790001,60146.0,60145.0,0.84446037]
[1723982820991,0.14790001,60146.0,60145.0,0.97785994]
[1723982821646,0.06710001,60146.0,60145.0,0.97785994]
[1723982821840,0.06710001,60146.0,60145.0,1.10023534]
[1723982822534,0.06710001,60146.0,60145.0,1.12507069]
[1723982822739,0.06710001,60146.0,60145.0,1.00086491]
[1723982822947,0.06710001,60146.0,60145.0,1.10025017]
[1723982824288,0.14790001,60146.0,60145.0,1.07545233]
[1723982824611,0.14790001,60146.0,60145.0,1.07545418]
[1723982824810,0.14685845,60146.0,60145.0,1.07545418]
[1723982825015,0.14785845,60146.0,60145.0,1.07545418]
[1723982825635,0.14685845,60146.0,60145.0,1.07545418]
[1723982825836,0.14785845,60146.0,60145.0,1.07545418]
[1723982826044,0.1469,60146.0,60145.0,1.07545406]
[1723982826294,0.1469,60146.0,60145.0,1.00089838]
[1723982826670,0.1479,60146.0,60145.0,1.00089838]
[1723982827585,0.1479,60146.0,60145.0,1.00089839]
[1723982827749,0.1479,60146.0,60145.0,0.98036192]
[1723982827953,0.1479,60146.0,60145.0,1.00089816]
[1723982828577,0.264283,60146.0,60145.0,0.02702065]
[1723982828797,0.497049,60146.0,60145.0,0.00648379]
[1723982829218,0.349155,60145.0,60144.0,0.0009086]
[1723982829421,0.727825,60145.0,60144.0,0.0009086]
[1723982831551,0.728825,60145.0,60144.0,0.0009086]
[1723982831969,0.727825,60145.0,60144.0,0.0009086]
[1723982832349,0.728825,60145.0,60144.0,0.0009086]
[1723982832484,0.496055,60145.0,60144.0,0.0009086]
[1723982832911,0.728825,60145.0,60144.0,0.0009086]
[1723982834358,0.727825,60145.0,60144.0,0.0009086]
[1723982834564,0.730825,60145.0,60144.0,0.0009086]
[1723982834974,0.963595,60145.0,60144.0,0.0009086]
[1723982835300,0.960595,60145.0,60144.0,0.0009086]
[1723982835502,0.965595,60145.0,60144.0,0.0009086]
[1723982835717,0.963595,60145.0,60144.0,0.0009086]
[1723982835867,0.960595,60145.0,60144.0,0.0009086]
[1723982836070,0.962595,60145.0,60144.0,0.0009086]
[1723982836310,0.965595,60145.0,60144.0,0.0009086]
[1723982837682,0.732825,60145.0,60144.0,0.0009086]
[1723982842631,0.500055,60145.0,60144.0,0.0009086]
[1723982846919,0.0701,60145.0,60144.0,0.1172956]
[1723982847120,0.005,60145.0,60144.0,0.3500696]
[1723982847331,0.005,60145.0,60144.0,0.73193348]
[1723982848090,0.005,60145.0,60144.0,0.75247133]
[1723982848847,0.000826,60146.0,60145.0,0.581925]
[1723982849048,0.000826,60146.0,60145.0,0.60246285]
[1723982849293,0.000826,60146.0,60145.0,0.60934187]
[1723982850109,0.000826,60146.0,60145.0,0.58880402]
[1723982850310,0.000826,60146.0,60145.0,0.60934225]
[1723982850311,0.001826,60146.0,60145.0,0.60934225]
[1723982850450,0.001826,60146.0,60145.0,0.37657225]
[1723982850650,0.001826,60146.0,60145.0,0.37657413]
[1723982850878,0.002826,60146.0,60145.0,0.37657413]
[1723982851050,0.002826,60146.0,60145.0,0.58880402]
[1723982851475,0.002826,60146.0,60145.0,0.60934486]
[1723982852123,0.002826,60146.0,60145.0,0.37657486]
[1723982852528,0.001826,60146.0,60145.0,0.37657486]
[1723982852683,0.001826,60146.0,60145.0,0.3765743]
[1723982852885,0.002826,60146.0,60145.0,0.3765743]
[1723982853535,0.001826,60146.0,60145.0,0.3765743]
[1723982853733,0.001826,60146.0,60145.0,0.35603402]
[1723982853961,0.002826,60146.0,60145.0,0.35603402]
[1723982856214,0.002826,60146.0,60145.0,0.37658343]
[1723982856419,0.002826,60146.0,60145.0,0.37749203]
[1723982856824,0.002826,60146.0,60145.0,0.35694262]
[1723982857820,0.002826,60146.0,60145.0,0.37749108]
[1723982858206,0.002826,60146.0,60145.0,0.35694262]
[1723982859643,0.002826,60146.0,60145.0,0.37749158]
[1723982860940,0.002826,60146.0,60145.0,0.35694262]
[1723982861293,0.002826,60146.0,60145.0,0.37749108]
[1723982862480,0.002826,60146.0,60145.0,0.35694262]
[1723982862703,0.002826,60146.0,60145.0,0.37749126]
[1723982863996,0.119209,60146.0,60145.0,0.02833626]
[1723982864201,0.119209,60146.0,60145.0,0.00778762]
[1723982864534,0.002826,60146.0,60145.0,0.00778762]
[1723982864914,0.001826,60146.0,60145.0,0.00778762]
[1723982865743,0.118209,60146.0,60145.0,0.00778762]
[1723982866145,0.350975,60146.0,60145.0,0.00778762]
[1723982866348,0.001826,60146.0,60145.0,0.00778762]
[1723982866646,0.118209,60146.0,60145.0,0.00778762]
[1723982867271,0.117209,60146.0,60145.0,0.00778762]
[1723982867495,0.118209,60146.0,60145.0,0.00778762]
[1723982868021,0.119209,60146.0,60145.0,0.00778762]
[1723982869692,0.118209,60146.0,60145.0,0.00778762]
[1723982870237,0.119209,60146.0,60145.0,0.00778762]
[1723982871020,0.000826,60146.0,60145.0,0.00778762]
[1723982871394,0.000826,60146.0,60145.0,0.02833424]
[1723982871801,0.001826,60146.0,60145.0,0.02833424]
[1723982873616,0.001826,60146.0,60145.0,0.07807359]
[1723982874015,0.002826,60146.0,60145.0,0.19445859]
[1723982874217,0.002826,60146.0,60145.0,0.19447492]
[1723982874417,0.002826,60146.0,60145.0,0.14471924]
[1723982874624,0.002826,60146.0,60145.0,0.19447492]
[1723982874871,0.002826,60146.0,60145.0,0.07808992]
[1723982875073,0.002826,60146.0,60145.0,0.02833424]
[1723982875625,0.002826,60146.0,60145.0,0.07808992]
[1723982877590,0.002826,60146.0,60145.0,0.07808823]
[1723982877795,0.002826,60146.0,60145.0,0.02833255]
[1723982878203,0.002826,60146.0,60145.0,0.19447271]
[1723982878990,0.002826,60146.0,60145.0,0.42724332]
[1723982879222,0.002826,60146.0,60145.0,0.37748755]
[1723982880129,0.002826,60146.0,60145.0,0.42724694]
[1723982880340,0.002826,60146.0,60145.0,0.37748755]
[1723982881042,0.002826,60146.0,60145.0,0.4272544]
[1723982881219,0.002826,60146.0,60145.0,0.37748972]
[1723982881646,0.002826,60146.0,60145.0,0.37748952]
[1723982882328,0.002826,60146.0,60145.0,0.45214903]
[1723982882811,0.002826,60146.0,60145.0,0.37748952]
[1723982883593,0.002826,60146.0,60145.0,0.45214903]
[1723982884394,0.066326,60146.0,60145.0,0.45214903]
[1723982884801,0.066326,60146.0,60145.0,0.45214826]
[1723982885423,0.066326,60146.0,60145.0,0.82112163]
[1723982885804,0.066326,60146.0,60145.0,0.37748875]
[1723982886189,0.066326,60146.0,60145.0,0.45214826]
[1723982886835,0.002826,60146.0,60145.0,0.45214826]
[1723982887335,0.002826,60146.0,60145.0,0.82112578]
[1723982888145,0.002826,60146.0,60145.0,0.82112624]
[1723982888354,0.002826,60146.0,60145.0,0.84601275]
[1723982888557,0.002826,60146.0,60145.0,0.74646673]
[1723982889000,0.002826,60146.0,60145.0,0.74646613]
[1723982889283,0.001826,60146.0,60145.0,0.84601215]
[1723982890647,0.002826,60146.0,60145.0,0.84601215]
[1723982891293,0.002826,60146.0,60145.0,0.74646613]
[1723982891826,0.002826,60146.0,60145.0,0.74646]
[1723982892270,0.002826,60146.0,60145.0,0.87100951]
[1723982892596,0.002826,60146.0,60145.0,0.74646]
[1723982892799,0.002826,60146.0,60145.0,0.87100951]
[1723982893012,0.002826,60146.0,60145.0,0.85046352]
[1723982893208,0.002826,60146.0,60145.0,0.87101102]
[1723982893458,0.002826,60146.0,60145.0,0.74646151]
[1723982894288,0.002826,60146.0,60145.0,0.05763703]
[1723982894289,0.722441,60146.0,60145.0,0.05763703]
[1723982894503,0.722441,60146.0,60145.0,0.00778762]
[1723982894909,0.722441,60146.0,60145.0,0.0009086]
[1723982895283,0.721441,60146.0,60145.0,0.0009086]
[1723982895667,0.720441,60146.0,60145.0,0.0009086]
[1723982897259,0.721441,60146.0,60145.0,0.0009086]
[1723982897890,0.722441,60146.0,60145.0,0.0009086]
[1723982898737,0.720441,60146.0,60145.0,0.0009086]
[1723982898940,0.723441,60146.0,60145.0,0.0009086]
[1723982899761,0.721441,60146.0,60145.0,0.0009086]
[1723982899964,0.723441,60146.0,60145.0,0.0009086]
[1723982900170,0.722441,60146.0,60145.0,0.0009086]
[1723982900569,0.723441,60146.0,60145.0,0.0009086]
[1723982901337,0.720441,60146.0,60145.0,0.0009086]
[1723982901743,0.723441,60146.0,60145.0,0.0009086]
[1723982901864,0.727441,60146.0,60145.0,0.0009086]
[1723982902451,0.723441,60146.0,60145.0,0.0009086]
[1723982902781,0.727441,60146.0,60145.0,0.0009086]
[1723982904975,0.8234615,60146.0,60145.0,0.0009086]
[1723982905386,1.0562275,60146.0,60145.0,0.0009086]